bitfinex-derivatives/quotes_ETHF0:USTF0_20251223
["timestamp","ask_amount","ask_price","bid_price","bid_amount"]
[1766457456581,3.328,3003.0,3001.5,9.731]
[1766457456786,3.328,3003.0,3001.7,2.19346526]
[1766457456975,0.00499019,3002.7,3002.0,0.16664]
[1766457457284,3.328,3003.2,3002.3,0.16664]
[1766457457582,0.16652,3004.3,3002.4,3.328]
[1766457457780,2.19346526,3004.9,3002.4,3.328]
[1766457457985,5.188,3004.7,3002.4,3.328]
[1766457458188,0.00499019,3003.9,3003.2,0.00499019]
[1766457458378,3.33399019,3003.9,3003.2,3.33399019]
[1766457459479,3.329,3003.8,3003.2,3.33399019]
[1766457460281,2.19346526,3003.7,3001.8,40.8]
[1766457460485,2.19346526,3003.7,3002.1,6.404]
[1766457460785,0.00499019,3003.9,3002.2,3.329]
[1766457460979,3.329,3003.8,3002.2,3.329]
[1766457461482,3.329,3003.8,3001.8,40.96664]
[1766457461684,3.329,3003.8,3001.9,18.059]
[1766457462079,3.232,3003.8,3001.9,18.059]
[1766457462287,3.329,3003.7,3001.9,18.059]
[1766457462585,3.329,3003.6,3001.9,18.059]
[1766457463579,3.329,3003.6,3001.8,0.3333]
[1766457463785,3.329,3003.6,3001.9,5.569]
[1766457463985,1.46477706,3003.7,3002.4,1.46477706]
[1766457464186,1.46477706,3003.7,3002.4,7.75277706]
[1766457464384,3.329,3003.6,3002.4,7.91941706]
[1766457464788,1.46477706,3002.9,3001.7,0.00302111]
[1766457464989,4.79377706,3002.9,3001.8,3.329]
[1766457465302,4.79377706,3002.9,3001.9,5.37]
[1766457465790,3.33,3002.8,3001.9,7.00141706]
[1766457465991,3.33,3002.8,3001.9,5.37]
[1766457466285,3.33,3002.8,3002.0,0.16664]
[1766457466491,3.33,3002.8,3002.1,3.33]
[1766457466693,0.16655,3003.8,3002.6,1.46477706]
[1766457466989,1.46477706,3003.6,3002.5,3.33]
[1766457467289,1.46477706,3003.4,3002.6,3.33]
[1766457467483,3.33,3003.3,3002.6,3.33]
[1766457468591,3.33,3003.3,3002.5,3.33]
[1766457468792,3.33,3003.3,3002.5,3.49664]
[1766457468993,5.773,3003.7,3002.5,3.33]
[1766457469286,5.773,3003.6,3002.5,3.33]
[1766457469486,9.103,3003.6,3002.5,3.33]
[1766457470090,3.33,3003.5,3002.5,3.33]
[1766457471093,0.00499019,3003.9,3002.5,3.33]
[1766457471301,5.457,3003.8,3002.5,3.33]
[1766457472890,0.00499019,3003.9,3002.5,3.49664]
[1766457472891,3.33,3003.7,3002.5,3.49664]
[1766457473091,0.00499019,3003.9,3002.5,3.49664]
[1766457473599,0.00381796,3004.8,3002.6,80.28660984]
[1766457473801,3.33,3004.7,3002.6,80.28660984]
[1766457474001,3.33,3004.7,3002.7,0.16661]
[1766457474200,3.33,3004.7,3002.8,18.076]
[1766457474600,3.33,3004.7,3003.4,0.00499019]
[1766457474798,3.33,3004.7,3003.5,9.751]
[1766457475696,0.00499019,3004.4,3003.5,9.751]
[1766457475891,3.33381796,3004.8,3003.5,9.751]
[1766457476094,3.33381796,3004.8,3003.6,8.326]
[1766457476295,0.00381796,3004.8,3003.6,8.326]
[1766457476702,2.19697264,3005.9,3003.6,8.326]
[1766457476898,0.00499019,3004.7,3003.6,8.326]
[1766457477805,0.00775175,3004.7,3003.6,8.326]
[1766457479500,0.00775175,3004.7,3003.4,0.00499019]
[1766457479804,0.00775175,3004.7,3003.5,18.075]
[1766457482005,0.00775175,3004.7,3003.5,18.07109716]
[1766457483413,3.33,3004.6,3003.5,18.07109716]
[1766457487403,0.00775175,3004.7,3003.5,18.07109716]
[1766457487605,3.33,3004.6,3003.5,18.07109716]
[1766457490505,3.33,3004.6,3003.5,9.74609716]
[1766457490711,3.33,3004.6,3003.5,3.33]
[1766457491213,3.33,3004.6,3003.2,6.421]
[1766457491710,2.65388091,3004.4,3002.8,5.651]
[1766457491915,0.16653,3004.2,3002.8,5.651]
[1766457492107,3.242,3004.1,3002.8,3.33]
[1766457492412,3.33,3004.0,3003.1,0.00499019]
[1766457493515,0.16653,3004.2,3003.1,0.00499019]
[1766457493714,13.5,3004.1,3003.1,0.00499019]
[1766457494317,13.66653,3004.1,3002.8,3.33]
[1766457495311,13.66653,3004.1,3003.1,0.00499019]
[1766457497411,13.66653,3004.1,3003.1,0.17163019]
[1766457497718,0.16653,3004.1,3003.1,0.17163019]
[1766457497920,4.598,3004.0,3003.1,0.17163019]
[1766457498718,0.00775175,3004.7,3003.1,0.17163019]
[1766457498920,3.33,3005.0,3004.1,0.15888825]
[1766457499217,11.55636091,3004.9,3003.3,3.33]
[1766457499420,9.2695,3004.8,3003.3,3.33]
[1766457499613,2.48736091,3004.4,3000.0,0.16676]
[1766457499819,0.00499019,3003.5,3002.9,0.16387844]
[1766457500012,3.33499019,3003.5,3002.9,0.16387844]
[1766457501420,0.00499019,3003.5,3002.9,0.16387844]
[1766457503116,3.33,3003.6,3002.9,0.16387844]
[1766457503823,2.65668376,3004.4,3002.9,0.16387844]
[1766457504017,0.00499019,3004.0,3002.9,0.16387844]
[1766457504218,3.33,3003.9,3002.9,0.16387844]
[1766457504418,0.00499019,3004.0,3002.9,8.48987844]
[1766457504618,0.00499019,3004.0,3003.9,0.15888825]
[1766457504813,0.00499019,3004.0,3002.9,8.33099019]
[1766457504814,0.00499019,3004.0,3003.4,3.33]
[1766457508725,0.00280285,3004.4,3003.4,3.33]
[1766457508923,3.33,3004.3,3003.4,3.33]
[1766457509723,0.00499019,3004.2,3003.4,3.33]
[1766457509917,3.33,3004.3,3003.4,3.33]
[1766457510318,3.33280285,3004.4,3003.4,3.33]
[1766457510625,0.00280285,3004.4,3003.4,3.33]
[1766457510828,0.00499019,3004.2,3003.4,3.33]
[1766457511127,3.33,3004.5,3003.5,40.8]
[1766457511726,3.33279051,3004.5,3003.5,40.8]
[1766457511926,0.00326886,3004.3,3003.5,40.8]
[1766457512330,0.00279051,3004.5,3003.5,40.8]
[1766457512620,1.44996431,3004.8,3003.5,40.8]
[1766457512828,3.33,3004.7,3003.5,40.8]
[1766457513520,3.33379517,3004.7,3003.5,40.8]
[1766457514821,3.33379517,3004.7,3003.4,3.33]
[1766457517237,0.00379517,3004.7,3003.4,3.33]
[1766457517433,3.33,3004.6,3003.4,3.33]
[1766457518629,0.00379517,3004.7,3003.4,3.33]
[1766457518939,3.33,3004.6,3003.4,3.33]
[1766457521039,0.00379517,3004.7,3003.4,3.33]
[1766457521335,3.33,3004.6,3003.4,3.33]
[1766457521733,0.00379517,3004.7,3003.4,3.33]
[1766457521929,0.16645,3005.7,3003.4,3.33]
[1766457522134,3.33,3005.6,3004.2,0.00499019]
[1766457522335,0.098,3005.5,3004.3,3.33]
[1766457522939,0.10104241,3005.5,3004.3,3.33403751]
[1766457523237,3.33,3005.4,3004.3,3.33403751]
[1766457524941,3.33,3005.3,3004.3,3.33403751]
[1766457525733,3.33,3005.4,3004.3,3.33403751]
[1766457528135,5.81736091,3005.4,3003.9,3.329]
[1766457528440,5.81736091,3005.4,3003.8,3.329]
[1766457528631,0.16648,3005.2,3003.8,3.329]
[1766457528941,4.521,3005.1,3003.8,3.329]
[1766457529240,0.00499019,3004.8,3004.1,0.00499019]
[1766457529443,3.329,3004.7,3004.1,0.00499019]
[1766457530542,3.329,3004.6,3004.1,0.00499019]
[1766457532642,0.00499019,3004.8,3004.1,0.00499019]
[1766457532843,3.329,3004.7,3004.1,0.00499019]
[1766457537947,1.46367798,3004.6,3004.1,0.00499019]
[1766457545647,0.00499019,3004.8,3004.2,3.329]
[1766457546044,1.46866817,3004.8,3004.2,3.329]
[1766457547445,0.00499019,3004.8,3004.2,3.329]
[1766457549748,1.46866817,3004.8,3004.2,3.329]
[1766457553255,1.46367798,3004.6,3004.1,0.00499019]
[1766457553459,1.46367798,3004.4,3004.1,0.00499019]
[1766457554056,1.46367798,3004.5,3004.1,0.00499019]
[1766457562770,3.329,3004.6,3004.1,0.00499019]
[1766457562970,1.46367798,3004.7,3004.1,0.00499019]
[1766457563360,4.79267798,3004.7,3004.1,0.00499019]
[1766457567475,1.46367798,3004.7,3004.1,0.00499019]
[1766457567674,3.329,3004.6,3004.1,0.00499019]
[1766457569174,1.46367798,3004.5,3004.0,3.329]
[1766457569767,3.329,3004.6,3004.0,3.329]
[1766457570275,3.329,3004.6,3004.0,3.33399019]
[1766457570568,1.46367798,3004.1,3003.1,1.22419292]
[1766457570774,1.46367798,3003.9,3003.2,9.739]
[1766457570973,1.46367798,3003.7,3003.2,9.739]
[1766457571167,1.46367798,3003.5,3003.2,9.739]
[1766457571366,1.46367798,3003.5,3002.9,3.329]
[1766457571568,1.46367798,3004.2,3002.9,3.329]
[1766457571569,3.329,3003.7,3002.9,3.33715672]
[1766457572477,4.79267798,3003.7,3002.9,3.33715672]
[1766457573377,1.46367798,3003.1,3002.6,3.329]
[1766457573681,1.46367798,3003.3,3002.6,3.329]
[1766457574370,1.4726466,3003.3,3002.6,3.33707932]
[1766457574872,0.00896862,3003.3,2999.3,3.325]
[1766457575084,7.2256466,3003.3,3001.5,1.46367798]
[1766457575375,1.46367798,3003.0,3001.7,1.46367798]
[1766457575577,3.33,3002.9,3001.8,3.33]
[1766457575980,3.33,3002.8,3002.0,0.00499019]
[1766457578069,3.33,3002.7,3002.0,0.00499019]
[1766457579285,1.46367798,3002.9,3002.0,0.00499019]
[1766457579485,3.33,3002.8,3002.0,0.00499019]
[1766457579784,1.46367798,3002.7,3002.0,0.00499019]
[1766457579980,1.46367798,3002.7,3001.8,3.33285875]
[1766457580286,1.46367798,3002.3,3001.8,1.76465875]
[1766457580479,3.33,3002.4,3001.8,1.76465875]
[1766457581082,3.33,3002.4,3001.8,1.76798551]
[1766457581381,1.46367798,3002.3,3001.8,1.17848551]
[1766457581591,1.46367798,3001.9,3001.1,3.33]
[1766457581773,1.46367798,3001.7,3000.9,3.33]
[1766457581977,2.92735596,3001.0,2997.9,1.46367798]
[1766457582178,1.46367798,3001.5,2998.6,0.18428223]
[1766457582179,17.59871,3000.9,2998.6,0.18428223]
[1766457582377,0.16671,3000.9,2998.7,40.8]
[1766457582579,0.16671,3000.9,2998.7,3.33379138]
[1766457582580,0.00499858,3000.1,2998.7,3.33379138]
[1766457582778,0.00499858,3000.1,2998.7,0.00279138]
[1766457582979,0.00499858,3000.1,2998.8,8.328]
[1766457583180,3.331,3000.0,2998.7,0.00279138]
[1766457583388,3.331,3000.2,2999.3,1.46367798]
[1766457583687,3.331,3000.2,2999.3,3.331]
[1766457583881,0.00327383,3000.9,2999.3,3.331]
[1766457584086,0.00499858,3000.4,2999.8,0.00499858]
[1766457584292,0.00499858,3000.4,2998.0,1.22377489]
[1766457584473,8.329,3000.5,2998.1,4.083]
[1766457584675,0.00327383,3000.9,2998.2,11.66]
[1766457584676,5.12,3000.4,2998.2,11.66]
[1766457584885,3.156,3000.8,2998.8,2.20122392]
[1766457585078,0.00327383,3000.9,2998.9,9.741]
[1766457585275,0.00499858,3000.2,2999.0,8.329]
[1766457585479,0.00499858,3000.2,2998.9,0.00361225]
[1766457585684,0.00499858,3000.2,2999.0,9.741]
[1766457585893,3.332,3000.1,2999.0,9.741]
[1766457587289,0.00499858,3000.2,2999.0,9.741]
[1766457587588,0.00499858,3000.2,2999.1,2.20122392]
[1766457587785,3.332,3000.5,2999.1,2.20122392]
[1766457587989,3.332,3000.7,2999.1,2.20122392]
[1766457588288,2.20122392,2999.2,2994.4,5.94821672]
[1766457588488,2.20122392,2997.4,2994.5,0.16707]
[1766457588691,1.1639412,2999.6,2995.3,3.48766441]
[1766457588692,2.20122392,2997.8,2995.3,3.48766441]
[1766457588881,0.16683,2998.9,2995.9,2.20122392]
[1766457589086,0.16683,2998.9,2996.2,2.20122392]
[1766457589288,3.855,2998.8,2996.3,18.08]
[1766457589492,1.62750829,2998.5,2996.3,3.71159582]
[1766457589693,0.16685,2998.4,2996.2,3.33477955]
[1766457589893,0.00499858,2997.6,2997.0,0.00499858]
[1766457590087,0.00499858,2997.6,2996.2,0.00277955]
[1766457590284,9.11,2997.5,2996.2,0.00277955]
[1766457590490,2.20122392,2997.2,2996.2,0.00277955]
[1766457590686,2.20122392,2996.8,2995.4,3.333]
[1766457590885,5.778,2996.7,2995.2,3.333]
[1766457591085,2.20122392,2996.4,2994.7,9.752]
[1766457591291,0.00500726,2995.8,2994.7,50.552]
[1766457591685,0.0091278,2995.8,2994.7,50.55619669]
[1766457592187,0.0091278,2995.8,2988.6,5.94821672]
[1766457592188,0.16702,2995.4,2993.6,0.23601724]
[1766457592390,2.20122392,2995.1,2993.6,0.23601724]
[1766457592688,0.0091278,2995.8,2993.5,3.334]
[1766457592893,3.334,2995.7,2993.5,3.334]
[1766457593287,0.0091278,2995.8,2993.5,3.334]
[1766457593288,0.0091278,2995.8,2993.5,3.33750278]
[1766457593493,0.0091278,2995.8,2993.6,3.60974512]
[1766457593692,3.334,2996.2,2994.5,2.20122392]
[1766457593993,2.20122392,2996.1,2994.6,16.177]
[1766457594195,5.519,2996.0,2994.6,3.334]
[1766457594397,2.20122392,2996.7,2994.6,3.334]
[1766457594891,0.00500726,2995.9,2995.4,0.00500726]
[1766457595093,3.34000726,2995.9,2995.4,0.00500726]
[1766457595897,3.335,2995.8,2995.4,0.00500726]
[1766457596193,0.00500726,2995.9,2995.4,0.00500726]
[1766457597598,3.336,2996.0,2995.4,0.00500726]
[1766457597893,3.336,2996.1,2995.4,0.00500726]
[1766457598493,0.00500726,2996.0,2995.4,0.00500726]
[1766457598892,3.34100726,2996.0,2995.4,0.00500726]
[1766457599294,0.00500726,2996.0,2995.4,0.00500726]
[1766457599494,3.336,2995.9,2995.4,0.00500726]
[1766457599996,3.336,2995.9,2994.7,3.337]
[1766457600199,3.336,2995.9,2994.3,3.337]
[1766457600393,0.00500726,2996.0,2994.3,3.337]
[1766457600594,3.337,2995.9,2994.4,43.30313896]
[1766457600799,3.337,2995.9,2994.4,46.87473199]
[1766457601093,3.337,2995.9,2994.9,0.00500726]
[1766457601397,0.00500726,2996.0,2995.0,3.337]
[1766457601598,3.337,2995.9,2992.9,0.16715]
[1766457601892,2.50313896,2995.6,2993.3,3.337]
[1766457602191,0.16702,2995.3,2992.1,1.18903377]
[1766457602391,0.16707,2994.5,2992.1,3.337]
[1766457602591,0.16702,2995.4,2992.8,2.50313896]
[1766457602797,0.16702,2995.4,2992.9,88.013]
[1766457602996,4.818,2995.3,2992.9,88.013]
[1766457603402,0.00379964,2995.3,2993.3,2.50313896]
[1766457603594,0.00379964,2995.3,2992.9,88.01671493]
[1766457603595,0.86426952,2996.8,2993.8,2.50313896]
[1766457603794,0.00500726,2995.6,2995.0,0.00500726]
[1766457604000,3.337,2996.0,2995.0,0.00500726]
[1766457604300,3.338,2996.7,2995.0,0.00500726]
[1766457604598,3.34220826,2996.7,2995.1,40.8]
[1766457604804,0.00420826,2996.7,2995.2,43.156]
[1766457605000,0.00420826,2996.7,2995.3,2.50313896]
[1766457605204,0.97841208,2998.5,2995.8,2.50313896]
[1766457605395,0.97841208,2998.5,2995.9,18.122]
[1766457605602,1.14902783,2999.3,2996.3,2.50313896]
[1766457605797,3.338,2999.2,2996.8,2.50313896]
[1766457606102,0.00340612,2999.2,2997.7,0.00500726]
[1766457606405,3.338,2999.1,2997.8,3.338]
[1766457606703,0.00340612,2999.2,2997.8,3.338]
[1766457606704,3.338,2999.0,2997.8,3.338]
[1766457607400,0.00500726,2998.7,2997.8,3.338]
[1766457607993,0.00340612,2999.2,2997.8,3.338]
[1766457608302,1.45270741,3000.3,2997.9,6.20589087]
[1766457608501,3.337,3000.2,2997.9,6.20589087]
[1766457609001,3.337,3000.2,2997.8,3.338]
[1766457609002,0.00500726,2999.3,2997.8,3.338]
[1766457609201,0.00756664,2999.3,2997.8,3.338]
[1766457609796,3.34456664,2999.3,2997.8,3.338]
[1766457610601,0.00756664,2999.3,2997.8,3.338]
[1766457611506,3.337,2999.6,2997.9,3.73846083]
[1766457611705,3.337,2999.7,2997.9,3.73846083]
[1766457611902,4.32659149,2999.6,2997.8,3.338]
[1766457612106,0.98959149,2999.5,2997.8,3.338]
[1766457612410,0.00328126,2998.9,2997.9,40.8]
[1766457613308,0.00327776,2999.5,2997.9,40.8]
[1766457614502,3.33927776,2999.5,2997.9,40.8]
[1766457614702,0.99067359,2999.4,2997.9,40.8]
[1766457615415,3.336,2999.3,2997.9,40.8]
[1766457615703,0.99117447,2999.2,2997.9,40.8]
[1766457615910,3.336,2999.3,2997.8,3.338]
[1766457616097,0.99117447,2999.2,2997.8,3.338]
[1766457616412,0.99117447,2999.2,2997.8,44.138]
[1766457617114,3.336,2999.1,2997.8,44.138]
[1766457617601,0.00327776,2999.5,2997.8,44.138]
[1766457617906,4.3281352,2999.4,2997.8,44.138]
[1766457618100,0.9921352,2999.3,2997.8,3.338]
[1766457618305,0.9921352,2999.2,2997.8,3.338]
[1766457618504,4.48502783,2999.4,2997.8,3.338]
[1766457618505,4.3281352,2999.1,2997.8,3.338]
[1766457618711,0.9921352,2999.0,2997.7,0.00759446]
[1766457618915,0.9921352,2998.9,2997.7,0.00759446]
[1766457619113,0.16684,2998.6,2997.0,3.336]
[1766457619414,12.61427416,2998.8,2996.4,3.336]
[1766457619415,1.14902783,2998.0,2996.4,3.336]
[1766457619605,10.1111352,2997.9,2996.4,3.336]
[1766457619802,0.9921352,2997.8,2996.4,3.336]
[1766457620003,0.9921352,2997.7,2996.4,3.336]
[1766457620201,0.00500726,2997.3,2996.8,7.26e-06]
[1766457620407,10.1111352,2997.2,2995.8,9.803]
[1766457620608,0.9921352,2997.1,2995.9,3.336]
[1766457620808,0.9921352,2997.0,2995.9,3.336]
[1766457621008,3.336,2996.9,2995.9,3.336]
[1766457621409,3.336,2996.9,2996.1,0.00500726]
[1766457621609,3.336,2997.1,2996.2,3.336]
[1766457621808,0.9916857,2997.0,2996.2,9.802]
[1766457622012,4.3276857,2997.2,2996.2,9.802]
[1766457622313,3.336,2997.2,2996.2,9.802]
[1766457622904,0.00828207,2997.3,2996.2,9.802]
[1766457623313,3.34428207,2997.3,2996.2,9.802]
[1766457623514,0.99256696,2997.2,2996.2,9.802]
[1766457623921,0.00828207,2997.3,2996.2,9.802]
[1766457624112,0.9926034,2997.9,2996.2,9.802]
[1766457624415,4.3286034,2997.8,2996.2,9.802]
[1766457624718,4.3296034,2997.7,2996.3,0.00379182]
[1766457624916,0.9926034,2997.6,2996.4,8.342]
[1766457625111,0.00500726,2997.3,2996.5,3.337]
[1766457625312,0.00500726,2997.3,2996.6,6.466]
[1766457625616,3.33940123,2997.6,2996.6,6.466]
[1766457625816,0.99352567,2997.5,2996.6,6.466]
[1766457626013,0.99352567,2997.4,2996.6,6.466]
[1766457626217,0.00240123,2997.6,2996.6,6.466]
[1766457626517,3.337,2997.9,2996.6,6.466]
[1766457626711,1.14902783,2998.2,2996.6,6.466]
[1766457626916,3.337,2998.1,2996.9,0.00379182]
[1766457627118,1.14902783,2998.3,2997.0,9.802]
[1766457627315,3.337,2998.2,2997.0,9.802]
[1766457627519,3.34005606,2998.2,2997.0,9.802]
[1766457627721,0.00305606,2998.2,2997.0,9.802]
[1766457628018,3.20864099,2998.4,2997.0,9.802]
[1766457628225,3.337,2998.3,2997.4,0.00500726]
[1766457628426,3.337,2998.2,2997.4,0.00500726]
[1766457628720,3.337,2998.1,2997.4,0.00500726]
[1766457629816,3.337,2998.1,2997.4,0.00879908]
[1766457630017,3.337,2998.1,2997.4,0.00500726]
[1766457630218,3.337,2998.1,2997.4,0.00879908]
[1766457630420,0.0029018,2998.2,2997.4,0.00879908]
[1766457630617,3.337,2998.1,2997.4,0.00500726]
[1766457631016,0.0029018,2998.2,2997.4,0.00879908]
[1766457631228,0.0029018,2998.2,2997.4,0.00500726]
[1766457631727,0.0029018,2998.2,2996.6,3.337]
[1766457631923,3.337,2998.1,2997.0,0.00379182]
[1766457632128,3.337,2998.1,2997.1,3.337]
[1766457632633,3.337,2998.1,2997.3,0.00500726]
[1766457632634,0.00500726,2997.9,2997.3,0.00500726]
[1766457634530,0.00500726,2997.9,2997.3,7.26e-06]
[1766457635031,0.00500726,2997.9,2996.8,3.337]
[1766457635232,5.784,2997.8,2996.5,3.337]
[1766457635428,9.121,2997.7,2996.3,3.337]
[1766457635932,3.337,2997.6,2996.7,0.00500726]
[1766457636934,3.337,2997.6,2996.7,7.26e-06]
[1766457638334,0.97966943,2997.5,2996.7,7.26e-06]
[1766457639741,9.122,2997.4,2996.7,0.00379908]
[1766457639938,9.122,2997.4,2996.7,7.26e-06]
[1766457640145,9.122,2997.4,2996.8,0.00379182]
[1766457640340,9.122,2997.4,2996.7,7.26e-06]
[1766457640940,0.97971696,2997.3,2995.9,3.34062719]
[1766457641548,9.122,2997.2,2995.9,3.34062719]
[1766457641948,0.1669,2997.5,2996.3,0.00500726]
[1766457642150,9.122,2997.4,2996.3,0.00500726]
[1766457642451,0.1669,2997.5,2996.3,0.00500726]
[1766457642749,4.287,2997.4,2996.3,0.00500726]
[1766457643346,4.287,2997.4,2996.3,7.26e-06]
[1766457643552,0.16691,2997.3,2995.9,3.34062719]
[1766457644249,1.13901488,2997.3,2995.9,3.34062719]
[1766457644451,1.13901488,2997.3,2996.3,0.00500726]
[1766457644452,0.16692,2997.2,2996.3,0.00500726]
[1766457644747,9.122,2997.1,2996.3,7.26e-06]
[1766457645655,0.16695,2996.6,2994.8,3.337]
[1766457645846,5.694,2996.5,2994.8,3.337]
[1766457646545,0.00500726,2996.0,2995.5,0.00500726]
[1766457646740,3.337,2995.9,2995.5,0.00500726]
[1766457646947,3.337,2995.9,2995.0,0.00255016]
[1766457647148,8.201,2995.9,2995.0,0.00255016]
[1766457647851,2.50313896,2995.7,2994.2,3.338]
[1766457648053,3.338,2995.6,2994.7,3.818e-05]
[1766457648248,9.124,2995.5,2994.7,3.818e-05]
[1766457648642,2.50313896,2995.2,2993.6,44.138]
[1766457648849,3.338,2995.1,2993.6,3.3404499]
[1766457649050,2.50313896,2995.7,2993.6,3.3404499]
[1766457649243,0.00905945,2996.0,2993.7,40.8]
[1766457649449,3.338,2995.9,2993.8,8.345]
[1766457649646,2.226,2995.8,2993.9,9.801]
[1766457650048,3.338,2995.7,2993.9,9.801]
[1766457650442,0.00905945,2996.0,2994.1,2.50313896]
[1766457650642,0.00905945,2996.0,2994.2,3.338]
[1766457650947,1.44082235,2996.2,2994.8,0.00500726]
[1766457651250,0.16696,2996.5,2994.0,8.457]
[1766457651444,3.39,2996.4,2994.1,3.338]
[1766457651650,0.16696,2996.5,2994.1,3.338]
[1766457651851,3.445,2996.4,2994.2,3.47973008]
[1766457652251,0.00500726,2995.6,2994.1,3.338]
[1766457652452,5.592,2995.5,2994.1,3.338]
[1766457652647,0.16702,2995.4,2993.6,0.0024499]
[1766457653254,3.338,2995.3,2993.6,0.0024499]
[1766457653455,5.788,2995.2,2993.6,0.0024499]
[1766457653959,5.788,2995.2,2993.7,6.471]
[1766457654151,0.00500726,2995.6,2993.8,3.339]
[1766457654361,3.339,2995.5,2993.9,8.347]
[1766457654552,3.34400726,2995.6,2993.9,41.738]
[1766457655353,3.34400726,2995.6,2993.9,8.347]
[1766457655853,0.00500726,2995.6,2993.9,8.347]
[1766457656047,3.339,2995.5,2993.9,8.347]
[1766457660057,0.16703,2995.2,2993.8,3.339]
[1766457660258,2.50313896,2994.2,2991.2,1.2168616]
[1766457660456,2.50313896,2994.2,2988.9,0.08587882]
[1766457660457,0.00500726,2993.0,2991.0,3.52565909]
[1766457660658,3.34400726,2993.0,2991.3,7.10648638]
[1766457660959,3.34400726,2993.0,2991.4,11.688]
[1766457661156,7.26e-06,2993.0,2991.8,2.50313896]
[1766457661357,0.16707,2994.4,2991.9,9.814]
[1766457661555,3.339,2994.3,2992.0,3.339]
[1766457661859,3.339,2994.2,2992.0,3.339]
[1766457662061,2.253,2994.1,2992.3,2.2113338]
[1766457662255,0.00500726,2993.5,2992.9,0.00500726]
[1766457662455,0.00500726,2993.5,2993.0,3.34]
[1766457663160,4.567,2993.4,2991.5,3.34]
[1766457663362,9.13,2993.3,2991.5,3.34]
[1766457664153,2.2113338,2993.2,2991.0,0.18665909]
[1766457664465,2.2113338,2993.1,2991.1,3.34]
[1766457664661,0.17213726,2993.5,2991.4,3.34415398]
[1766457664863,3.454,2993.4,2991.5,2.288]
[1766457665067,8.52313726,2993.5,2991.5,2.288]
[1766457665068,9.131,2993.3,2991.5,2.288]
[1766457665468,9.131,2993.3,2991.6,8.351]
[1766457665668,9.131,2993.3,2991.7,3.34]
[1766457665972,0.00500726,2993.5,2991.7,3.34]
[1766457666164,3.34,2993.4,2991.9,2.2113338]
[1766457666367,3.34,2993.4,2992.0,3.34]
[1766457666568,3.34,2993.4,2992.1,6.475]
[1766457666764,5.791,2993.4,2992.1,6.475]
[1766457666969,3.34500726,2993.5,2992.2,2.2113338]
[1766457667162,3.34500726,2993.5,2992.3,3.34]
[1766457667558,0.00500726,2993.5,2992.3,3.34]
[1766457667858,3.341,2993.4,2992.3,3.34]
[1766457668370,0.00500726,2993.5,2992.1,9.816]
[1766457668572,7.407,2993.4,2992.1,9.816]
[1766457668765,5.792,2993.4,2992.1,9.816]
[1766457668965,0.00500726,2993.5,2992.1,9.816]
[1766457669373,3.34600726,2993.5,2992.1,9.816]
[1766457669576,0.00500726,2993.5,2992.1,9.816]
[1766457669775,3.341,2993.4,2992.1,9.816]
[1766457669972,0.00500726,2993.5,2992.3,2.2113338]
[1766457670178,3.341,2994.0,2992.7,2.2113338]
[1766457670381,2.9478,2994.0,2992.8,8.835]
[1766457670675,3.341,2993.9,2992.9,3.341]
[1766457671076,0.00500726,2993.7,2993.1,0.00500726]
[1766457672366,3.341,2993.6,2993.1,0.00500726]
[1766457673075,3.341,2993.6,2993.1,7.26e-06]
[1766457673274,3.341,2993.6,2992.5,3.341]
[1766457673478,0.97044599,2993.5,2991.8,3.341]
[1766457673677,0.97044599,2993.5,2991.9,3.341]
[1766457673875,2.2113338,2993.3,2991.9,3.341]
[1766457674076,9.133,2993.2,2991.9,3.341]
[1766457674378,9.133,2993.2,2991.5,6.474]
[1766457674583,9.133,2993.2,2991.5,9.815]
[1766457675073,2.2113338,2992.9,2991.5,3.341]
[1766457675269,6.76379982,2992.8,2991.4,0.00415398]
[1766457675481,9.134,2992.7,2991.4,0.00415398]
[1766457675682,2.2113338,2992.9,2991.4,0.00415398]
[1766457675879,0.97082412,2992.8,2991.5,3.341]
[1766457676199,3.341,2992.7,2991.5,3.341]
[1766457676375,5.793,2992.7,2991.5,3.341]
[1766457676573,3.341,2992.6,2991.5,3.341]
[1766457676777,2.2113338,2993.1,2991.5,3.341]
[1766457676985,18.45896914,2993.0,2991.5,3.341]
[1766457677185,17.488,2993.0,2991.5,3.341]
[1766457677386,2.2113338,2993.1,2991.4,0.00415398]
[1766457677584,0.97094377,2993.0,2991.5,3.342]
[1766457677782,2.219,2992.9,2991.5,3.342]
[1766457677985,5.561,2992.9,2991.5,3.342]
[1766457678186,0.16714,2993.3,2991.5,3.342]
[1766457678382,3.342,2993.2,2991.6,8.355]
[1766457678679,9.137,2993.2,2991.7,3.635]
[1766457678884,0.00500726,2993.7,2991.8,3.342]
[1766457679084,3.397,2993.6,2991.9,40.8]
[1766457679278,0.00500726,2993.7,2991.9,40.8]
[1766457679481,3.342,2993.6,2991.9,40.8]
[1766457679784,0.00500726,2993.7,2991.9,40.8]
[1766457680280,3.342,2993.6,2991.9,40.8]
[1766457680677,0.00500726,2993.7,2992.0,2.2113338]
[1766457680878,3.34700726,2993.7,2992.1,3.342]
[1766457681087,3.34700726,2993.7,2992.2,6.487]
[1766457681275,2.2113338,2993.5,2991.9,40.8]
[1766457681480,0.97184297,2993.4,2991.9,40.8]
[1766457681787,9.137,2993.3,2991.9,40.8]
[1766457681986,3.342,2993.2,2991.9,40.8]